Cogmind - Beta 15 @@@ ROGUE MODE // 2025.05.24 @ 11:47:41 Player: KeKe Result: Destroyed by WS-LYA(R) with Subdweller Shrapnel Launcher Performance ------------- Evolutions (0) 0 Regions Visited (2) 400 Robots Destroyed (32) 160 Value Destroyed (826) 826 Prototype IDs (0) 0 Alien Tech Used (0) 0 Bonus (0) 0 TOTAL SCORE: 1386 Bonus ------- None Cogmind --------- Core Integrity 0/250 Matter 300/300 Energy 239/250 System Corruption 0% Temperature Cool (0) Movement Rolling (110) Location -10/Subcaves Parts ------- > --- POWER (1) -------- Ion Engine > --- PROPULSION (2) --- Subdweller Monowheel > --- UTILITY (2) ------ Heat Sink Small Storage Unit > --- WEAPON (2) ------- Beam Rifle > --- INVENTORY (8) ---- Subdweller Power Source Subdweller Monowheel Sensor Array Signal Interpreter Seismic Detector Piercing Trap Peak State ------------ > --- POWER ------------ Light Ion Engine > --- PROPULSION ------- Wheel Compact Wheel > --- UTILITY ---------- Heat Sink Small Storage Unit > --- WEAPON ----------- Beam Rifle Mini Grenade Launcher > --- INVENTORY -------- Light Ion Engine Subdweller Power Source Subdweller Monowheel Sensor Array Signal Interpreter Seismic Detector EM Pulse Gun Mining Laser [Rating: 10] Favorites ----------- Power Light Ion Engine Engine Light Ion Engine Propulsion Wheel Wheel Wheel Utility Small Storage Unit Device Heat Sink Storage Small Storage Unit Weapon EM Pulse Gun Energy Gun EM Pulse Gun Launcher Mini Grenade Launcher Special Weapon Mining Laser Build | -11 -10 -10 ------- Run | Yrd Mat Sub Slots Evolved . | . . . Power . | . . . Propulsion . | . . . Utility . | . . . Weapon . | . . . Parts Attached 22 | 7 8 7 Power 4 | 1 1 2 Engine 4 | 1 1 2 Core . | . . . Reactor . | . . . Propulsion 6 | 2 2 2 Treads . | . . . Leg . | . . . Wheel 6 | 2 2 2 Hover . | . . . Flight . | . . . Utility 5 | 2 2 1 Device 4 | 1 2 1 Storage 1 | 1 . . Processor . | . . . Hackware . | . . . Protection . | . . . Artifact . | . . . Weapon 7 | 2 3 2 Energy Gun 5 | 2 2 1 Energy Cannon . | . . . Ballistic Gun . | . . . Ballistic Cannon . | . . . Launcher 1 | . . 1 Special Weapon 1 | . 1 . Impact Weapon . | . . . Slashing Weapon . | . . . Piercing Weapon . | . . . Special Melee Weapon . | . . . Unidentified Prototypes . | . . . Parts Lost 12 | . 3 9 Power 1 | . . 1 Propulsion 5 | . 1 4 Utility . | . . . Weapon 6 | . 2 4 Highest Loss Streak 3 | . 2 3 To Critical Strikes . | . . . Average Backups 6 | 1 7 7 Power 1 | . 1 1 Propulsion . | . . 1 Utility 2 | . 2 3 Weapon 1 | . 2 1 Tool/Special . | . . . Unused Backups 4 | . 1 3 Power 1 | . . 1 Propulsion 1 | . . 1 Utility 2 | . 1 1 Weapon . | . . . Tool/Special . | . . . Average Slot Usage (%) 99 | . 99 99 Engine 13 | . 14 13 Wheel 27 | . 27 27 Device 14 | . 14 14 Storage 14 | . 14 14 Energy Gun 18 | . 25 14 Launcher 7 | . . 10 Special Weapon 2 | . 2 2 Peak Build Rating 10 | 7 8 10 Average Rating 8 | 5 7 8 On Entrance 4 | . 7 7 Naked Turns . | . . . Heaviest Build 16 | 15 15 16 Greatest Support 36 | 26 26 36 Greatest Overweight (x) 1 | 1 1 . Average Overweight (x) . | . . . Largest Inventory Capacity 8 | 8 8 8 Average Capacity 7 | 7 8 8 Most Carried 8 | 3 8 8 Average Carried 7 | 1 7 7 Final Capacity 8 | 8 8 8 Final Carried 8 | 3 8 6 Class Distribution -------------------- 100% | Mutant Dominant Class ---------------- Mutant | -10/Materials Mutant | -10/Subcaves Resources | -11 -10 -10 ----------- Run | Yrd Mat Sub Matter Collected 615 | 270 80 265 Remotely . | . . . Salvage Created 1143 | 142 713 288 Parts 76 | 12 40 24 Haulers Intercepted 1 | . 1 . Recyclers Shooed 1 | . 1 . Parts Field Recycled . | . . . Retrieved Matter . | . . . Parts Self-Destructed 9 | . . 9 Prevented 3 | . . 3 Kills | -11 -10 -10 ------- Run | Yrd Mat Sub Combat Hostiles Destroyed 21 | . 11 10 Guns 11 | . 9 2 AOE 8 | . . 8 Classes Destroyed 9 | 2 5 2 Builder 2 | . 2 . Tunneler 3 | 3 . . Hauler 1 | . 1 . Recycler 3 | 1 2 . Watcher 2 | . 2 . Swarmer 3 | . 3 . Grunt 8 | . 8 . Sentry 1 | . . 1 Subdweller 9 | . . 9 Best Kill Streak 6 | 3 6 2 Combat Bots Only 6 | . 6 2 Max Kills in Single Turn 2 | 1 2 2 Gunslinging 1 | . 1 . Exploded 2 | . . 2 Melee . | . . . Uniques/NPCs Destroyed . | . . . Combat | -11 -10 -10 -------- Run | Yrd Mat Sub Hostile Shots Fired 57 | . 34 23 Missed 16 | . 7 9 Hits 41 | . 27 14 Projectile 41 | . 27 14 AOE 2 | . . 2 Damage Taken 924 | . 338 586 Core 275 | . 82 193 Absorbed by Shields . | . . . Core Remaining (%) 100 | 100 . . Volleys Fired 79 | 8 44 27 Largest 2 | 2 2 2 Hottest 100 | 80 100 100 Shots Fired 137 | 16 86 35 Gun 113 | 16 84 13 Cannon . | . . . Launcher 14 | . . 14 Special 10 | . 2 8 Kinetic . | . . . Thermal 11 | . 2 9 Explosive 14 | . . 14 Electromagnetic 112 | 16 84 12 Robot Hit Streak 20 | 4 16 20 Robot Miss Streak 2 | 2 2 1 Penetration Max . | . . . Secondary Targets 1 | . 1 . Max Gunslinging Chain 1 | . 1 . Shots Hit Robots 94 | 10 64 20 Core Hits 48 | 5 26 17 Critical Kills . | . . . Critical Parts Destroyed . | . . . Critical Strikes 2 | . 2 . Corrupt 2 | . 2 . Melee Attacks . | . . . Impact . | . . . Slashing . | . . . Piercing . | . . . Sneak Attacks . | . . . Combat Hostiles . | . . . Follow-up Attacks . | . . . Damage Inflicted 2263 | 149 919 1195 Guns 1173 | 149 875 149 Cannons . | . . . Explosions 1090 | . 44 1046 Melee . | . . . Ramming . | . . . Kinetic . | . . . Thermal 59 | . 44 15 Explosive 1046 | . . 1046 Electromagnetic 1158 | 149 875 134 Impact . | . . . Slashing . | . . . Piercing . | . . . Highest Corruption . | . . . Average Corruption . | . . . Corruption Purged . | . . . Corruption Blocked . | . . . Overload Shots . | . . . Overflow Damage 12 | . 12 . Projectiles . | . . . Explosions 12 | . 12 . Melee . | . . . Knockbacks . | . . . Impact . | . . . Kinetic . | . . . Secondary . | . . . Self-Inflicted Damage 82 | . 34 48 Shots 4 | . 1 3 Rammed . | . . . Targets Rammed . | . . . Kicked . | . . . Crushed . | . . . Highest Temperature 110 | 108 110 . Average Temperature 38 | 46 35 . Received Heat Transfer 174 | . 144 30 Siege Activations . | . . . Martial Activations . | . . . Shielding Activations . | . . . Robots Disrupted . | . . . Combat Hostiles . | . . . Robots Corrupted 3 | . 3 . Combat Hostiles 2 | . 2 . Parts Fried 4 | . 4 . Impact Corruptions . | . . . Robots Melted . | . . . Combat Hostiles . | . . . Parts Melted . | . . . Heat Transferred 87 | . 50 37 Parts Sabotaged . | . . . Parts Stolen . | . . . Parts Stripped . | . . . Power Chain Reactions 1 | . 1 . Alert | -11 -10 -10 ------- Run | Yrd Mat Sub Maximum Alert Level . | . . . Low Security (%) 100 | 100 100 . Level 1 . | . . . Level 2 . | . . . Level 3 . | . . . Level 4 . | . . . Level 5 . | . . . High Security . | . . . Max Security . | . . . Peak Influence 163 | 15 163 . Initial 3 | . 3 . Average 73 | 3 85 . Influence Increases 479 | 20 439 20 Destroy 0b10 Robot/C 240 | . 220 20 Destroy 0b10 Robot/NC 55 | 20 35 . Destroy Leader 56 | . 56 . Successful Hack 29 | . 29 . Select Force Hacks 60 | . 60 . Disable Machine 15 | . 15 . Destroy Structure 9 | . 9 . Lose Combat Pursuer 15 | . 15 . Influence Decreases 479 | 15 284 180 Entered New Map 79 | . 2 77 Time Decay 360 | 15 252 93 Lost Part 40 | . 30 10 Squads Dispatched 4 | . 4 . Investigation 4 | . 4 . Extermination . | . . . Reinforcement . | . . . Assault . | . . . Garrison . | . . . Intercept . | . . . Searches Triggered . | . . . Construction Impeded . | . . . Haulers Reinforced . | . . . Active Scanning Responses . | . . . Cargo Convoy Interrupts . | . . . Stealth | -11 -10 -10 --------- Run | Yrd Mat Sub Distress Signals . | . . . Communications Jammed . | . . . Distress Signals . | . . . Times Spotted 26 | . 15 11 Peak Tracking Total 6 | . 6 2 Tactical Retreats 1 | . 1 . Traps | -11 -10 -10 ------- Run | Yrd Mat Sub Traps Triggered 4 | . . 4 Indirectly . | . . . Trap Hack Attempts . | . . . Triggered . | . . . Disarmed . | . . . Reprogrammed . | . . . Reused . | . . . Traps Extracted . | . . . Installed 1 | . . 1 Triggered . | . . . Most Traps Carried 2 | . . 2 Machines | -11 -10 -10 ---------- Run | Yrd Mat Sub Machines Disabled 1 | . 1 . Max in Single Turn 1 | . 1 . Machines Repaired . | . . . Machines Dismantled . | . . . Machines Sabotaged . | . . . Overloaded Fab Kills . | . . . Hacking | -11 -10 -10 --------- Run | Yrd Mat Sub Machines Accessed 9 | . 6 3 Terminals 4 | . 4 . Fabricators . | . . . Repair Stations . | . . . Recycling Units 2 | . 2 . Scanalyzers . | . . . Garrison Access . | . . . Total Hacks 21 | . 14 7 Successful 14 | . 7 7 Failed 7 | . 7 . Catastrophic 2 | . 2 . Database Lockouts . | . . . Manual 14 | . 14 . Terminals 12 | . 12 . Fabricators . | . . . Repair Stations . | . . . Recycling Units 2 | . 2 . Scanalyzers . | . . . Garrison Access . | . . . Terminal Hacks 7 | . . 7 Record 5 | . . 5 Open Door 1 | . . 1 Release Object 1 | . . 1 Fabricator Hacks . | . . . Repair Station Hacks . | . . . Recycling Unit Hacks . | . . . Scanalyzer . | . . . Garrison Access Hacks . | . . . Unauthorized Hacks 7 | . 7 . Terminals 5 | . 5 . Assimilate 1 | . 1 . Botnet 4 | . 4 . Fabricators . | . . . Repair Stations . | . . . Recycling Units 2 | . 2 . Tunnel 2 | . 2 . Scanalyzers . | . . . Garrison Access . | . . . Data Cores Recovered . | . . . Used . | . . . Hacking Detections 4 | . 4 . Full Trace Events 1 | . 1 . Feedback Events . | . . . Feedback Blocked . | . . . Robot Schematics Acquired . | . . . Robots Built . | . . . Authchips . | . . . Time . | . . . Total Robot Build Rating . | . . . Part Schematics Acquired . | . . . Parts Built . | . . . Authchips . | . . . Time . | . . . Total Part Build Rating . | . . . Parts Repaired . | . . . Time . | . . . Parts Recycled . | . . . Recycled Matter . | . . . Retrieved Matter . | . . . Retrieved Components . | . . . Parts Scanalyzed . | . . . Part Schematics Acquired . | . . . Parts Damaged . | . . . Bothacking | -11 -10 -10 ------------ Run | Yrd Mat Sub Used RIF Installer . | . . . Robots Hacked . | . . . Non-combat . | . . . Combat . | . . . Robot Hacks Applied . | . . . Relay Couplers Released . | . . . Fabnet Peak Effective % . | . . . Robots Rewired . | . . . Allies Hacked . | . . . Hacks Repelled . | . . . Allies | -11 -10 -10 -------- Run | Yrd Mat Sub Total Allies 1 | . 1 . Largest Group 1 | . 1 . Highest-Rated Group 10 | . 10 . Highest-Rated Ally 10 | . 10 . Total Orders . | . . . Ally Attacks . | . . . Total Damage . | . . . Kills . | . . . Allies Corrupted . | . . . Allies Melted . | . . . Intel | -11 -10 -10 ------- Run | Yrd Mat Sub Active Infowar (turns) 792 | 25 277 490 Sensors 490 | . . 490 Seismic 302 | 25 277 . Robot Analysis Total . | . . . Derelict Logs Recovered . | . . . Drone Launches . | . . . Drone Recoveries . | . . . Exploration | -11 -10 -10 ------------- Run | Yrd Mat Sub Turns Passed 1762 | 99 579 1084 Spaces Moved 1579 | 71 452 1056 Core 7 | 7 . . Treads . | . . . Legs . | . . . Wheels 1572 | 64 452 1056 Hover . | . . . Flight . | . . . Fastest Speed 50 | 50 80 80 Average Speed 88 | 87 86 89 Slowest Speed 105 | 100 95 105 Overloaded Moves . | . . . Propulsion Burnouts . | . . . Robots Hopped . | . . . Potential Cave-ins . | . . . Cave-ins Triggered . | . . . Exploration Rate (%) 41 | 5 70 49 Regions Visited 2 Branch Regions 1 Pre-discovered Areas 2 | . 2 . Known Exits Taken . | . . . Unknown Exits Taken 2 | 1 1 . Scrap Searched 5 | . . 5 Spaces Dug . | . . . Terrain Destroyed 91 | . 8 83 Melee . | . . . Projectile . | . . . AOE 91 | . 8 83 Terrain Rammed . | . . . Walls Destroyed . | . . . Machines Disabled . | . . . Actions | -11 -10 -10 --------- Run | Yrd Mat Sub Total 1774 | 88 549 1137 Wait 57 | . 32 25 Move 1577 | 70 451 1056 Hop . | . . . Pick Up 19 | 3 9 7 Fast Attach 9 | 7 1 1 Attach 8 | . 2 6 Detach . | . . . Swap 15 | . 6 9 Drop 8 | . 4 4 Fire 79 | 8 44 27 Melee . | . . . Ram . | . . . Kick . | . . . Crush . | . . . Escape Stasis . | . . . Rewire . | . . . Trap 1 | . . 1 Miscellaneous 1 | . . 1 Route ------- -11/Scrapyard -10/Materials (discovered 5 exits: [*Mat x3] / [*Min] / *Sub) -10/Subcaves History --------- Turn | Location | Event 8 | -11/Scrapyard | Discovered new exit (range 16) 100 | -11/Scrapyard | Entered Materials 157 | -10/Materials | Discovered new exit (range 10) 301 | -10/Materials | Build established: Mutant 350 | -10/Materials | Discovered new exit (range 9) 540 | -10/Materials | Discovered new exit (range 6) 606 | -10/Materials | Discovered new exit (range 16) 672 | -10/Materials | Discovered new exit (range 9) 679 | -10/Materials | Entered Subcaves 680 | -10/Subcaves | Approached by a straggling Scientist 740 | -10/Subcaves | Ambushed by Subdwellers from Twisted Machinery 798 | -10/Subcaves | Shifting Twisted Machinery released Shrapnel Trap 833 | -10/Subcaves | Shifting Twisted Machinery released Enh. Flamer 873 | -10/Subcaves | Ambushed by Subdwellers from Twisted Machinery 956 | -10/Subcaves | Released subatomizers from SUBCON Basin 1097 | -10/Subcaves | Visited Clippyterm 1100 | -10/Subcaves | Learned Factory trap positions 1131 | -10/Subcaves | Shifting Twisted Machinery released Shrapnel Trap 1152 | -10/Subcaves | Shifting Twisted Machinery released Shrapnel Trap 1221 | -10/Subcaves | Core integrity fell below 50% 1304 | -10/Subcaves | Disturbed a concealed Subdweller 1647 | -10/Subcaves | Core integrity fell below 20% 1674 | -10/Subcaves | Lost 3 parts (1n2w) 1763 | -10/Subcaves | Destroyed by WS-LYA(R) with Subdweller Shrapnel Launcher Last Messages --------------- 01643_ Triggered Piercing Trap. 01643_ Spikes shoot up from the floor. 01643_ Critical hit (Impale). 01643_ Mni. Grenade Launcher destroyed. 01646_ Triggered Shrapnel Trap. 01646_ An expanding cloud of shrapnel blasts out in all directions. 01726_ Searching scrap... 01726_ Found Sub. Beam Cannon. 01726_ Found 59 Matter. 01727_ Acquired 30 matter. 01737_ Searching scrap... 01737_ Found Piercing Trap. 01737_ Found Shrapnel Trap. 01737_ Found 58 Matter. 01746_ Acquired Piercing Trap. 01748_ Acquired Shrapnel Trap. 01759_ Dropped Shrapnel Trap. 01759_ Installed Shrapnel Trap. 01761_ Com. Wheel destroyed. 01763_ EM Pulse Gun destroyed. Map ----- +----------------------------------------------------+ | ?????????????????????????????????????????????????? | | ?????????????????????????????????????????????????? | | ?????????????????????????????????????????????????? | | ?????????????????????????????????????????????????? | | ?????????????????????????????????????????????????? | | ?????????????????????????????????????????????????? | | ?????????????????????????????????????????????????? | | ?????????????????????????????????????????????????? | | ?????????????????????????????????????????????????? | | ?????????????????????????????????????????????????? | | ?????????????????????????????????????????????????? | | ?????????????????????????????????????????????????? | | ?????????????????????????????????????????????????? | | ?????????????????????????????????????????????????? | | ?????????????????????????????????????????????????? | | ?????????????????????????????????????????????????? | | ?????????????????????????????????????????????????? | | ?????????????????????????????????????????????????? | | ??????????????????####??#???####?????????????????? | | ?????????????????##$ <